Cogmind - Beta 11.2 @@@ ROGUE MODE // 2023.02.10 @ 21:46:45 Player: RaoLuAn Result: Destroyed by D-53 Grenadier with Mini Grenade Launcher Performance ------------- Evolutions (0) 0 Regions Visited (2) 400 Robots Destroyed (12) 60 Value Destroyed (196) 196 Prototype IDs (0) 0 Alien Tech Used (0) 0 Bonus (0) 0 TOTAL SCORE: 656 Bonus ------- None Cogmind --------- Core Integrity 0/250 Matter 298/300 Energy 100/100 System Corruption 0% Temperature Cool (20) Movement Rolling (100) Location -10/Mines Parts ------- > --- POWER (1) -------- (None) > --- PROPULSION (2) --- Compact Wheel > --- UTILITY (2) ------ Medium Storage Unit Sensor Array > --- WEAPON (2) ------- (None) > --- INVENTORY (10) --- Hover Unit Hover Unit Hover Unit Small Storage Unit Signal Interpreter Signal Interpreter Mining Laser Peak State ------------ > --- POWER ------------ Ion Engine > --- PROPULSION ------- Compact Wheel Compact Wheel > --- UTILITY ---------- Small Storage Unit Sensor Array > --- WEAPON ----------- Assault Rifle Datajack > --- INVENTORY -------- Compact Wheel Medium Laser [Rating: 7] Favorites ----------- Power Ion Engine Engine Ion Engine Propulsion Compact Wheel Wheel Compact Wheel Utility Sensor Array Device Sensor Array Storage Small Storage Unit Weapon Assault Rifle Energy Gun Medium Laser Ballistic Gun Assault Rifle Special Weapon Mining Laser Special Melee Weapon Datajack Build | -11 -10 -10 ------- Run | Scr Mat Min Slots Evolved . | . . . Power . | . . . Propulsion . | . . . Utility . | . . . Weapon . | . . . Parts Attached 12 | 6 6 . Power 1 | 1 . . Engine 1 | 1 . . Core . | . . . Reactor . | . . . Propulsion 2 | 2 . . Treads . | . . . Leg . | . . . Wheel 2 | 2 . . Hover . | . . . Flight . | . . . Utility 4 | 1 3 . Device 2 | . 2 . Storage 2 | 1 1 . Processor . | . . . Hackware . | . . . Protection . | . . . Artifact . | . . . Weapon 5 | 2 3 . Energy Gun 1 | 1 . . Energy Cannon . | . . . Ballistic Gun 2 | 1 1 . Ballistic Cannon . | . . . Launcher . | . . . Special Weapon 1 | . 1 . Impact Weapon . | . . . Slashing Weapon . | . . . Piercing Weapon . | . . . Special Melee Weapon 1 | . 1 . Unidentified Prototypes . | . . . Parts Lost 6 | . 3 3 Power 1 | . . 1 Propulsion 1 | . . 1 Utility 1 | . 1 . Weapon 3 | . 2 1 Highest Loss Streak 3 | . 3 2 To Critical Strikes . | . . . Average Slot Usage (%) 89 | . 91 74 Engine 12 | . 14 3 Wheel 28 | . 28 28 Device 11 | . 10 14 Storage 14 | . 14 14 Ballistic Gun 13 | . 12 14 Special Melee Weapon 7 | . 8 . Naked Turns . | . . . Heaviest Build 19 | 14 19 18 Greatest Support 32 | 32 32 32 Greatest Overweight (x) . | . . . Average Overweight (x) . | . . . Largest Inventory Capacity 10 | 8 10 10 Average Capacity 8 | 7 8 10 Most Carried 8 | . 8 7 Average Carried 5 | . 6 7 Final Capacity 10 | 8 10 10 Final Carried 7 | . 7 7 Class Distribution -------------------- 100% | Mutant Dominant Class ---------------- Mutant | -10/Materials Mutant | -10/Mines Resources | -11 -10 -10 ----------- Run | Scr Mat Min Matter Collected 428 | 250 141 37 Remotely . | . . . Salvage Created 212 | . 138 74 Parts 22 | . 16 6 Haulers Intercepted . | . . . Recyclers Shooed 3 | . 1 2 Parts Field Recycled . | . . . Retrieved Matter . | . . . Parts Self-Destructed . | . . . Prevented . | . . . Kills | -11 -10 -10 ------- Run | Scr Mat Min Combat Hostiles Destroyed 8 | . 5 3 Guns 7 | . 4 3 Cannons 1 | . 1 . Classes Destroyed 4 | . 3 1 Tunneler 1 | . . 1 Watcher 3 | . 3 . Swarmer 6 | . 3 3 Grunt 2 | . 2 . Best Kill Streak 4 | . 4 3 Combat Bots Only 3 | . 3 3 Max Kills in Single Turn 1 | . 1 1 Gunslinging . | . . . Exploded . | . . . Melee . | . . . Uniques/NPCs Destroyed . | . . . Combat | -11 -10 -10 -------- Run | Scr Mat Min Damage Taken 568 | . 294 274 Core 255 | . 103 152 Absorbed by Shields . | . . . Core Remaining (%) 100 | 100 . . Volleys Fired 51 | . 33 18 Largest 1 | . 1 1 Hottest 100 | . 100 20 Shots Fired 51 | . 33 18 Gun 45 | . 27 18 Cannon . | . . . Launcher . | . . . Special 6 | . 6 . Kinetic 45 | . 27 18 Thermal 6 | . 6 . Explosive . | . . . Electromagnetic . | . . . Robot Hit Streak 4 | . 4 3 Robot Miss Streak 4 | . 3 4 Penetration Max . | . . . Secondary Targets . | . . . Shots Hit Robots 30 | . 20 10 Core Hits 15 | . 10 5 Critical Kills 1 | . 1 . Critical Parts Destroyed . | . . . Critical Strikes 1 | . 1 . Destroy 1 | . 1 . Melee Attacks 4 | . 4 . Impact . | . . . Slashing . | . . . Piercing . | . . . Sneak Attacks 1 | . 1 . Combat Hostiles . | . . . Follow-up Attacks . | . . . Damage Inflicted 382 | . 263 119 Guns 310 | . 191 119 Cannons . | . . . Explosions . | . . . Melee . | . . . Ramming . | . . . Kinetic 310 | . 191 119 Thermal 72 | . 72 . Explosive . | . . . Electromagnetic . | . . . Impact . | . . . Slashing . | . . . Piercing . | . . . Highest Corruption . | . . . Average Corruption . | . . . Corruption Purged . | . . . Corruption Blocked . | . . . Overload Shots . | . . . Overflow Damage . | . . . Projectiles . | . . . Explosions . | . . . Melee . | . . . Knockbacks . | . . . Impact . | . . . Kinetic . | . . . Secondary . | . . . Self-Inflicted Damage . | . . . Shots . | . . . Rammed . | . . . Targets Rammed . | . . . Kicked . | . . . Crushed . | . . . Highest Temperature 208 | . 208 . Average Temperature 110 | . 110 . Received Heat Transfer 184 | . 144 40 Siege Activations . | . . . Robots Corrupted . | . . . Combat Hostiles . | . . . Parts Fried . | . . . Impact Corruptions . | . . . Robots Melted . | . . . Combat Hostiles . | . . . Parts Melted . | . . . Heat Transferred 150 | . 150 . Parts Sabotaged . | . . . Parts Stolen . | . . . Parts Stripped . | . . . Power Chain Reactions . | . . . Missiles Intercepted . | . . . Alert | -11 -10 -10 ------- Run | Scr Mat Min Peak Influence 115 | . 92 115 Initial 35 | . . 35 Average 44 | . 37 102 Maximum Alert Level . | . . . Low Security (%) 100 | 100 100 100 Level 1 . | . . . Level 2 . | . . . Level 3 . | . . . Level 4 . | . . . Level 5 . | . . . High Security . | . . . Max Security . | . . . Squads Dispatched . | . . . Investigation . | . . . Extermination . | . . . Reinforcement . | . . . Assault . | . . . Garrison . | . . . Intercept . | . . . Searches Triggered . | . . . Construction Impeded . | . . . Haulers Reinforced . | . . . Active Scanning Responses . | . . . Cargo Convoy Interrupts . | . . . Stealth | -11 -10 -10 --------- Run | Scr Mat Min Distress Signals . | . . . Communications Jammed . | . . . Distress Signals . | . . . Times Spotted 21 | . 8 13 Peak Tracking Total 8 | . 3 8 Tactical Retreats . | . . . Traps | -11 -10 -10 ------- Run | Scr Mat Min Traps Triggered . | . . . Indirectly . | . . . Trap Hack Attempts . | . . . Triggered . | . . . Disarmed . | . . . Reprogrammed . | . . . Reused . | . . . Traps Extracted . | . . . Installed . | . . . Triggered . | . . . Machines | -11 -10 -10 ---------- Run | Scr Mat Min Machines Disabled . | . . . Max in Single Turn . | . . . Machines Sabotaged . | . . . Garrisons Compromised . | . . . Overloaded Fab Kills . | . . . Hacking | -11 -10 -10 --------- Run | Scr Mat Min Machines Accessed . | . . . Terminals . | . . . Fabricators . | . . . Repair Stations . | . . . Recycling Units . | . . . Scanalyzers . | . . . Garrison Access . | . . . Total Hacks . | . . . Successful . | . . . Failed . | . . . Catastrophic . | . . . Database Lockouts . | . . . Manual . | . . . Terminals . | . . . Fabricators . | . . . Repair Stations . | . . . Recycling Units . | . . . Scanalyzers . | . . . Garrison Access . | . . . Terminal Hacks . | . . . Fabricator Hacks . | . . . Repair Station Hacks . | . . . Recycling Unit Hacks . | . . . Scanalyzer . | . . . Garrison Access Hacks . | . . . Unauthorized Hacks . | . . . Terminals . | . . . Fabricators . | . . . Repair Stations . | . . . Recycling Units . | . . . Scanalyzers . | . . . Garrison Access . | . . . Data Cores Recovered . | . . . Used . | . . . Hacking Detections . | . . . Full Trace Events . | . . . Feedback Events . | . . . Feedback Blocked . | . . . Robot Schematics Acquired . | . . . Robots Built . | . . . Authchips . | . . . Time . | . . . Total Robot Build Rating . | . . . Part Schematics Acquired . | . . . Parts Built . | . . . Authchips . | . . . Time . | . . . Total Part Build Rating . | . . . Parts Repaired . | . . . Time . | . . . Parts Recycled . | . . . Recycled Matter . | . . . Retrieved Matter . | . . . Retrieved Components . | . . . Parts Scanalyzed . | . . . Part Schematics Acquired . | . . . Parts Damaged . | . . . Bothacking | -11 -10 -10 ------------ Run | Scr Mat Min Used RIF Installer . | . . . Robots Hacked 2 | . 2 . Non-combat 2 | . 2 . Combat . | . . . Robot Hacks Applied 2 | . 2 . parse_system 2 | . 2 . Relay Couplers Released . | . . . Fabnet Peak Effective % . | . . . Robots Rewired . | . . . Allies Hacked . | . . . Hacks Repelled . | . . . Allies | -11 -10 -10 -------- Run | Scr Mat Min Total Allies . | . . . Largest Group . | . . . Highest-Rated Group . | . . . Highest-Rated Ally . | . . . Total Orders . | . . . Ally Attacks . | . . . Total Damage . | . . . Kills . | . . . Allies Corrupted . | . . . Allies Melted . | . . . Intel | -11 -10 -10 ------- Run | Scr Mat Min Robot Analysis Total . | . . . Derelict Logs Recovered . | . . . Drone Launches . | . . . Drone Recoveries . | . . . Exploration | -11 -10 -10 ------------- Run | Scr Mat Min Turns Passed 656 | 48 512 96 Spaces Moved 489 | 40 397 52 Core 1 | 1 . . Treads . | . . . Legs . | . . . Wheels 488 | 39 397 52 Hover . | . . . Flight . | . . . Fastest Speed 50 | 50 100 100 Average Speed 99 | 98 100 100 Slowest Speed 100 | 100 100 100 Overloaded Moves . | . . . Propulsion Burnouts . | . . . Robots Hopped . | . . . Cave-ins Triggered . | . . . Exploration Rate (%) 19 | 4 41 14 Regions Visited 2 Branch Regions 1 Pre-discovered Areas . | . . . Known Exits Taken . | . . . Unknown Exits Taken 2 | 1 1 . Scrap Searched . | . . . Spaces Dug . | . . . Terrain Destroyed 2 | . 2 . Melee . | . . . Projectile 2 | . 2 . AOE . | . . . Terrain Rammed . | . . . Walls Destroyed . | . . . Machines Disabled . | . . . Actions | -11 -10 -10 --------- Run | Scr Mat Min Total 589 | 46 465 78 Wait 18 | . 10 8 Move 487 | 39 396 52 Hop . | . . . Pick Up 14 | 1 13 . Fast Attach 5 | 5 . . Attach 4 | 1 3 . Detach . | . . . Swap 3 | . 3 . Drop 3 | . 3 . Fire 51 | . 33 18 Melee 4 | . 4 . Ram . | . . . Kick . | . . . Crush . | . . . Escape Stasis . | . . . Rewire . | . . . Trap . | . . . Miscellaneous . | . . . Route ------- -11/Scrapyard -10/Materials -10/Mines History --------- Turn | Location | Event 14 | -11/Scrapyard | Discovered new exit (range 16) 49 | -11/Scrapyard | Entered Materials 150 | -10/Materials | Discovered new exit (range 8) 316 | -10/Materials | Build established: Mutant 441 | -10/Materials | Lost 3 parts (1u2w) 561 | -10/Materials | Entered Mines 629 | -10/Mines | Assembled infested the area 653 | -10/Mines | Core integrity fell below 50% 657 | -10/Mines | Destroyed by D-53 Grenadier with Mini Grenade Launcher Last Messages --------------- 00558_ Acquired Mining Laser. LOCATION=UNKNOWN GOAL=ESCAPE Something is scanning the area. 00570_ S-10 Pest destroyed. 00586_ Ion Engine destroyed. 00586_ S-10 Pest destroyed. 00587_ Acquired 16 matter. 00600_ Acquired 2 matter. 00602_ Acquired 4 matter. 00604_ Acquired 3 matter. 00622_ T-07 Excavator destroyed. 00627_ Acquired 9 matter. 00629_ ALERT: Infestation in the mines, dispatching Demolisher response squad. 00642_ R-06 Scavenger destroyed. 00656_ Com. Wheel destroyed. 00657_ Assault Rifle destroyed. 00657_ Knocked back. 00657_ as-03068 destroyed. Map ----- +----------------------------------------------------+ | | | | | | | | | | | | | | | | | | | | | | | | | | | | | | | | | | | ???????????????????????????????????????????????? | | ???????????????????????????????????????????????? | | ???????????????????????????????????????????##### | | ???????????????????????????????????????????# | | ????????????????????????##?????????????????# | | ????????????????????#### ##??????????????# | | ???????????????????## #??????????????# | | ???????????????????# a ##?????????????# | | ???????????????????# @ a% ##????????????# | | ???????????????????### a #????????????#==[ | | ?????????????????????# ##????????#####%## | | ???????????????????? # aa ##???????# =%#? | | ???????????????????#dda ### ######??# ###=#? | | ???????????????????# ####?## ! ##?# #?# #? | | ???????????????????# ??????###? %* ### #?# | | ???????????????????# ????????##%! ## ##### | | ??????????????????? ????????##= ## ##?? | | ??????????????????" ?????????# #??? | | ??????????????????" ?????????# #??? | | ?????????????????"" ?????????## =% ##??? | | ?????????????????? ???????????## #???? | | ??????????????????# ????????????# #???? | | ??????????????????? ????????????# ##???? | | ????????????????????????????????# ##????? | | ????????????????????????????????## ##?????? | | ?????????????????????????????????# ### #??????? | | ?????????????????????????????????# #?# #??????? | | ?????????????????????????????????# #?# #??????? | | ?????????????????????????????????# #?# #??????? | | ?????????????????????????????????# ? #??????? | | ????????????????????????????????? #?###??????? | | ?????????????????????????????????###???????????? | | ???????????????????????????????????????????????? | +----------------------------------------------------+ Best States ------------- Heat Dissipation 25 Energy Generation 10 Energy Capacity 250 Matter Stores 300 Matter Capacity 300 Sight Range 16 Robot Scan Range 14 Terrain Scan Density 10 Evasion (%) 40 Item Schematics ----------------- None Robot Schematics ------------------ None Fabricated ------------ Nothing Alien Tech Used ----------------- None Achievements -------------- None Challenges ------------ None Game ------ Seed NavigationSapperShearcannon Manual? 0 Play Time 00:09:35 Cumulative 10.2 hours Start 2023.02.10 @ 21:37:57 End 2023.02.10 @ 21:46:45 Sessions 1 Manual Loads 0 Difficulty Rogue Special Mode None Game No. 15 Rogue 15 Adventurer 0 Explorer 0 Win Type - Total 0 Types 0/0/0/0/0/0/0/0/0 Lore% 12 Gallery% 17 Achievement% 14 Wizard Run 0 Options --------- ASCII 0 Keyboard 0 Movement Mouse Keybinds 0 Fullscreen 1 Font 18/X11 Map View 76x50 Tactical HUD 1 Map Filters NONE Filters NONE Steam 1 RUN: c829d807-4ac1-44a0-82a5-ea134a98ab42